Cogmind - Beta 13 @@@ ROGUE MODE // 2024.04.10 @ 20:09:10 Player: Bananaman Result: Destroyed by G-47 Trooper with Particle Gun Performance ------------- Evolutions (2) 1000 Regions Visited (3) 600 Robots Destroyed (34) 170 Value Destroyed (875) 875 Prototype IDs (0) 0 Alien Tech Used (0) 0 Bonus (0) 0 TOTAL SCORE: 2645 Bonus ------- None Cogmind --------- Core Integrity 0/550 Matter 62/300 Energy 99/100 System Corruption 0% Temperature Cool (9) Movement Core (100) Ox1 Location -8/Materials Parts ------- > --- POWER (1) -------- (None) > --- PROPULSION (3) --- (None) > --- UTILITY (5) ------ Small Storage Unit Improved Signal Interpreter System Shield > --- WEAPON (2) ------- (None) > --- INVENTORY (8) ---- Deuterium Engine Advanced Targeting Computer ECM Suite Reaction Control System Field Recycling Unit (0) Autogun Autogun Peak State ------------ > --- POWER ------------ Light Nuclear Core > --- PROPULSION ------- Aluminum Leg Aluminum Leg VSS Leg > --- UTILITY ---------- Small Storage Unit Improved Signal Interpreter Hardlight Generator System Shield System Shield > --- WEAPON ----------- Rocket Launcher Rocket Launcher > --- INVENTORY -------- Deuterium Engine Advanced Targeting Computer ECM Suite Field Recycling Unit Autogun Autogun [Rating: 26] Favorites ----------- Power Deuterium Engine Engine Deuterium Engine Power Core Light Nuclear Core Propulsion Aluminum Leg Leg Aluminum Leg Utility Small Storage Unit Device ECM Suite Storage Small Storage Unit Processor Signal Interpreter Hackware System Shield Weapon Autogun Energy Gun Medium Laser Ballistic Gun Autogun Launcher Rocket Launcher Build | -11 -10 -9 -8 ------- Run | Yrd Mat Mat Mat Slots Evolved 4 | . . 2 2 Power . | . . . . Propulsion 1 | . . . 1 Utility 3 | . . 2 1 Weapon . | . . . . Parts Attached 32 | 8 7 8 9 Power 4 | 1 1 1 1 Engine 3 | 1 1 1 . Core 1 | . . . 1 Reactor . | . . . . Propulsion 5 | 2 1 1 1 Treads . | . . . . Leg 5 | 2 1 1 1 Wheel . | . . . . Hover . | . . . . Flight . | . . . . Utility 14 | 2 3 4 5 Device 7 | 1 1 3 2 Storage 1 | 1 . . . Processor 4 | . 2 1 1 Hackware 2 | . . . 2 Protection . | . . . . Artifact . | . . . . Weapon 9 | 3 2 2 2 Energy Gun 2 | 2 . . . Energy Cannon . | . . . . Ballistic Gun 5 | 1 2 2 . Ballistic Cannon . | . . . . Launcher 2 | . . . 2 Special Weapon . | . . . . Impact Weapon . | . . . . Slashing Weapon . | . . . . Piercing Weapon . | . . . . Special Melee Weapon . | . . . . Unidentified Prototypes . | . . . . Parts Lost 7 | . . . 7 Power 1 | . . . 1 Propulsion 3 | . . . 3 Utility 2 | . . . 2 Weapon 1 | . . . 1 Highest Loss Streak 7 | . . . 7 To Critical Strikes . | . . . . Average Slot Usage (%) 96 | . 99 99 89 Engine 9 | . 14 11 4 Core 1 | . . . 4 Leg 22 | . 28 22 20 Device 13 | . 8 19 8 Storage 11 | . 14 11 9 Processor 11 | . 4 12 16 Hackware 2 | . . . 10 Ballistic Gun 18 | . 25 22 6 Launcher 2 | . . . 9 Naked Turns . | . . . . Heaviest Build 24 | 15 20 24 23 Greatest Support 32 | 20 20 20 32 Greatest Overweight (x) 2 | 2 . 1 1 Average Overweight (x) . | . . 1 . Largest Inventory Capacity 8 | 8 8 8 8 Average Capacity 7 | 7 8 8 8 Most Carried 8 | 4 8 8 8 Average Carried 6 | 2 6 7 7 Final Capacity 8 | 8 8 8 8 Final Carried 8 | 2 8 8 7 Class Distribution -------------------- 95% | Mutant 4% | Hacker-Mutant Dominant Class ---------------- Mutant | -10/Materials Mutant | -9/Materials Mutant | -8/Materials Resources | -11 -10 -9 -8 ----------- Run | Yrd Mat Mat Mat Matter Collected 1109 | 218 421 368 102 Remotely . | . . . . Salvage Created 1161 | 20 604 418 119 Parts 78 | 4 39 28 7 Haulers Intercepted 4 | . 2 2 . Recyclers Shooed 1 | . . 1 . Parts Field Recycled 1 | . . . 1 Retrieved Matter 6 | . . . 6 Parts Self-Destructed . | . . . . Prevented . | . . . . Kills | -11 -10 -9 -8 ------- Run | Yrd Mat Mat Mat Combat Hostiles Destroyed 20 | . 11 6 3 Guns 17 | . 11 6 . AOE 3 | . . . 3 Classes Destroyed 9 | 1 6 1 1 Builder 1 | . . . 1 Tunneler 1 | 1 . . . Hauler 4 | . 2 2 . Recycler 3 | . 2 1 . Operator 1 | . 1 . . Watcher 4 | . 2 1 1 Swarmer 6 | . 3 3 . Grunt 8 | . 8 . . Sentry 6 | . . 3 3 Best Kill Streak 9 | 1 9 3 2 Combat Bots Only 3 | . 3 3 1 Max Kills in Single Turn 4 | 1 4 1 2 Gunslinging . | . . . . Exploded 1 | . . . 1 Melee . | . . . . Uniques/NPCs Destroyed . | . . . . Combat | -11 -10 -9 -8 -------- Run | Yrd Mat Mat Mat Hostile Shots Fired 146 | . 33 39 74 Missed 38 | . 11 12 15 Damage Taken 1643 | . 225 329 1089 Core 616 | . 26 36 554 Absorbed by Shields . | . . . . Regen/Repaired (Parts) 11 | . . 11 . Core Remaining (%) 93 | 100 89 91 . Volleys Fired 102 | 11 39 38 14 Largest 2 | 2 2 2 2 Hottest 100 | 100 46 46 66 Shots Fired 203 | 22 78 76 27 Gun 178 | 22 78 76 2 Cannon . | . . . . Launcher 25 | . . . 25 Special . | . . . . Kinetic 156 | . 78 76 2 Thermal 22 | 22 . . . Explosive 25 | . . . 25 Electromagnetic . | . . . . Robot Hit Streak 5 | 4 5 5 5 Robot Miss Streak 8 | 2 7 8 3 Penetration Max . | . . . . Secondary Targets 1 | . . 1 . Max Gunslinging Chain 1 | . . 1 . Shots Hit Robots 98 | 12 36 38 12 Core Hits 57 | 2 22 15 18 Critical Kills . | . . . . Critical Parts Destroyed 2 | . 1 1 . Critical Strikes 5 | 3 1 1 . Burn 3 | 3 . . . Destroy 2 | . 1 1 . Melee Attacks . | . . . . Impact . | . . . . Slashing . | . . . . Piercing . | . . . . Sneak Attacks . | . . . . Combat Hostiles . | . . . . Follow-up Attacks . | . . . . Damage Inflicted 2485 | 149 1189 612 535 Guns 1396 | 149 628 588 31 Cannons . | . . . . Explosions 1051 | . 554 . 497 Melee . | . . . . Ramming 38 | . 7 24 7 Kinetic 1247 | . 628 588 31 Thermal 703 | 149 554 . . Explosive 497 | . . . 497 Electromagnetic . | . . . . Impact . | . . . . Slashing . | . . . . Piercing . | . . . . Highest Corruption . | . . . . Average Corruption . | . . . . Corruption Purged . | . . . . Corruption Blocked . | . . . . Overload Shots . | . . . . Overflow Damage 105 | . 86 . 19 Projectiles . | . . . . Explosions 105 | . 86 . 19 Melee . | . . . . Knockbacks . | . . . . Impact . | . . . . Kinetic . | . . . . Secondary . | . . . . Self-Inflicted Damage 2 | . . . 2 Shots 1 | . . . 1 Rammed . | . . . . Targets Rammed 9 | . 1 4 4 Kicked 9 | . 1 4 4 Crushed . | . . . . Highest Temperature 316 | 316 25 49 8 Average Temperature 45 | 160 10 6 5 Received Heat Transfer 624 | . 84 117 423 Effects 3 | 3 . . . Interference 3 | 3 . . . Siege Activations . | . . . . Robots Corrupted . | . . . . Combat Hostiles . | . . . . Parts Fried . | . . . . Impact Corruptions . | . . . . Robots Melted . | . . . . Combat Hostiles . | . . . . Parts Melted . | . . . . Heat Transferred 1016 | 666 350 . . Parts Sabotaged . | . . . . Parts Stolen . | . . . . Parts Stripped . | . . . . Power Chain Reactions . | . . . . Alert | -11 -10 -9 -8 ------- Run | Yrd Mat Mat Mat Peak Influence 463 | 5 463 262 239 Initial 135 | . 3 135 47 Average 141 | 3 149 172 111 Maximum Alert Level 2 | . 2 1 1 Low Security (%) 74 | 100 70 65 88 Level 1 25 | . 28 34 11 Level 2 . | . 1 . . Level 3 . | . . . . Level 4 . | . . . . Level 5 . | . . . . High Security . | . . . . Max Security . | . . . . Squads Dispatched 3 | . 1 1 1 Investigation 1 | . . 1 . Extermination . | . . . . Reinforcement 2 | . 1 . 1 Assault . | . . . . Garrison . | . . . . Intercept . | . . . . Searches Triggered . | . . . . Construction Impeded . | . . . . Haulers Reinforced . | . . . . Active Scanning Responses . | . . . . Cargo Convoy Interrupts . | . . . . Stealth | -11 -10 -9 -8 --------- Run | Yrd Mat Mat Mat Distress Signals 2 | . . 2 . Communications Jammed . | . . . . Distress Signals . | . . . . Times Spotted 47 | . 16 16 15 Peak Tracking Total 9 | . 4 4 9 Tactical Retreats 4 | . . 3 1 Traps | -11 -10 -9 -8 ------- Run | Yrd Mat Mat Mat Traps Triggered . | . . . . Indirectly . | . . . . Trap Hack Attempts . | . . . . Triggered . | . . . . Disarmed . | . . . . Reprogrammed . | . . . . Reused . | . . . . Traps Extracted . | . . . . Installed . | . . . . Triggered . | . . . . Machines | -11 -10 -9 -8 ---------- Run | Yrd Mat Mat Mat Machines Disabled 12 | . 9 1 2 Max in Single Turn 9 | . 9 1 1 Machines Repaired . | . . . . Machines Dismantled . | . . . . Machines Sabotaged . | . . . . Overloaded Fab Kills . | . . . . Hacking | -11 -10 -9 -8 --------- Run | Yrd Mat Mat Mat Machines Accessed 12 | . 3 6 3 Terminals 8 | . 2 3 3 Fabricators . | . . . . Repair Stations 1 | . . 1 . Recycling Units 2 | . 1 1 . Scanalyzers 1 | . . 1 . Garrison Access . | . . . . Total Hacks 36 | . 9 11 16 Successful 23 | . 4 10 9 Failed 13 | . 5 1 7 Catastrophic 2 | . . 1 1 Database Lockouts . | . . . . Manual 12 | . 3 4 5 Terminals 25 | . 4 5 16 Fabricators . | . . . . Repair Stations 2 | . . 2 . Recycling Units 7 | . 5 2 . Scanalyzers 2 | . . 2 . Garrison Access . | . . . . Terminal Hacks 13 | . 1 3 9 Record 5 | . 1 . 4 Alert Level 3 | . . 2 1 Locate Traps 2 | . . 1 1 Maintenance Status 1 | . . . 1 Transport Status 1 | . . . 1 Zone Layout 1 | . . . 1 Fabricator Hacks . | . . . . Repair Station Hacks 2 | . . 2 . Scan Component 1 | . . 1 . Repair 1 | . . 1 . Recycling Unit Hacks 3 | . 2 1 . Report Inventory 2 | . 1 1 . Retrieve Components 1 | . 1 . . Scanalyzer 2 | . . 2 . Insert Component 1 | . . 1 . Analyze 1 | . . 1 . Garrison Access Hacks . | . . . . Unauthorized Hacks 3 | . 1 2 . Terminals 1 | . . 1 . Operators 1 | . . 1 . Fabricators . | . . . . Repair Stations . | . . . . Recycling Units 2 | . 1 1 . Monitor 2 | . 1 1 . Scanalyzers . | . . . . Garrison Access . | . . . . Data Cores Recovered . | . . . . Used . | . . . . Hacking Detections 7 | . 2 3 2 Full Trace Events 1 | . . 1 . Feedback Events . | . . . . Feedback Blocked . | . . . . Robot Schematics Acquired . | . . . . Robots Built . | . . . . Authchips . | . . . . Time . | . . . . Total Robot Build Rating . | . . . . Part Schematics Acquired 1 | . . 1 . Parts Built . | . . . . Authchips . | . . . . Time . | . . . . Total Part Build Rating . | . . . . Parts Repaired 1 | . . 1 . Time 38 | . . 38 . Parts Recycled . | . . . . Recycled Matter . | . . . . Retrieved Matter . | . . . . Retrieved Components 10 | . 10 . . Parts Scanalyzed 1 | . . 1 . Part Schematics Acquired 1 | . . 1 . Parts Damaged . | . . . . Bothacking | -11 -10 -9 -8 ------------ Run | Yrd Mat Mat Mat Used RIF Installer . | . . . . Robots Hacked . | . . . . Non-combat . | . . . . Combat . | . . . . Robot Hacks Applied . | . . . . Relay Couplers Released . | . . . . Fabnet Peak Effective % . | . . . . Robots Rewired . | . . . . Allies Hacked . | . . . . Hacks Repelled . | . . . . Allies | -11 -10 -9 -8 -------- Run | Yrd Mat Mat Mat Total Allies . | . . . . Largest Group . | . . . . Highest-Rated Group . | . . . . Highest-Rated Ally . | . . . . Total Orders . | . . . . Ally Attacks . | . . . . Total Damage . | . . . . Kills . | . . . . Allies Corrupted . | . . . . Allies Melted . | . . . . Intel | -11 -10 -9 -8 ------- Run | Yrd Mat Mat Mat Robot Analysis Total . | . . . . Derelict Logs Recovered . | . . . . Drone Launches . | . . . . Drone Recoveries . | . . . . Exploration | -11 -10 -9 -8 ------------- Run | Yrd Mat Mat Mat Turns Passed 2113 | 116 492 952 553 Spaces Moved 1142 | 65 301 431 345 Core 47 | 16 . . 31 Treads . | . . . . Legs 1095 | 49 301 431 314 Wheels . | . . . . Hover . | . . . . Flight . | . . . . Fastest Speed 50 | 50 120 190 100 Average Speed 151 | 105 120 190 139 Slowest Speed 190 | 150 120 190 190 Overloaded Moves . | . . . . Propulsion Burnouts . | . . . . Robots Hopped . | . . . . Cave-ins Triggered . | . . . . Exploration Rate (%) 32 | 4 54 39 33 Regions Visited 3 Branch Regions . Pre-discovered Areas . | . . . . Known Exits Taken 2 | . 1 1 . Unknown Exits Taken 1 | 1 . . . Scrap Searched . | . . . . Spaces Dug . | . . . . Terrain Destroyed 253 | . 26 . 227 Melee . | . . . . Projectile . | . . . . AOE 253 | . 26 . 227 Terrain Rammed . | . . . . Walls Destroyed . | . . . . Machines Disabled . | . . . . Actions | -11 -10 -9 -8 --------- Run | Yrd Mat Mat Mat Total 1352 | 88 372 503 389 Wait 14 | . 2 7 5 Move 1139 | 64 300 430 345 Hop . | . . . . Pick Up 27 | 4 11 8 4 Fast Attach 15 | 5 5 2 3 Attach 13 | 3 2 5 3 Detach 5 | 1 2 1 1 Swap 4 | . . 1 3 Drop 24 | . 10 7 7 Fire 102 | 11 39 38 14 Melee . | . . . . Ram . | . . . . Kick 9 | . 1 4 4 Crush . | . . . . Escape Stasis . | . . . . Rewire . | . . . . Trap . | . . . . Miscellaneous . | . . . . Route ------- -11/Scrapyard -10/Materials (discovered 2 exits: *Mat x2) -9/Materials -8/Materials (discovered 1 exit: *Fac) History --------- Turn | Location | Event 5 | -11/Scrapyard | Discovered new exit (range 15) 117 | -11/Scrapyard | Entered Materials 309 | -10/Materials | Build established: Mutant 312 | -10/Materials | Discovered new exit (range 9) 559 | -10/Materials | Discovered new exit (range 15) 607 | -10/Materials | Identified exit to Materials 609 | -10/Materials | Entered another Materials area 609 | -9/Materials | Evolved 2 slots: Utility x2 754 | -9/Materials | Repaired Imp. Terrain Scanner 1516 | -9/Materials | Discovered new exit (range 15) 1550 | -9/Materials | Identified exit to Materials 1561 | -9/Materials | Entered another Materials area 1561 | -8/Materials | Evolved 2 slots: Propulsion x1, Utility x1 1962 | -8/Materials | Discovered new exit (range 5) 1967 | -8/Materials | Identified exit to Factory 2087 | -8/Materials | Core integrity fell below 50% 2101 | -8/Materials | Core integrity fell below 20% 2114 | -8/Materials | Destroyed by G-47 Trooper with Particle Gun Last Messages --------------- 02053_ Acquired 3 matter. 02067_ Acquired Reaction Control System. 02076_ Rocket Launcher destroyed. 02076_ Kicked G-47 Trooper out of the way. 02077_ Kicked Y-45 Defender. 02078_ Aluminum Leg destroyed. 02079_ Kicked Y-45 Defender out of the way. 02081_ Penetrated by Slug. 02081_ Knocked back. 02081_ Hardlight Generator destroyed. 02082_ Acquired 5 matter. 02083_ Lgt. Nuclear Core destroyed. 02083_ VSS Leg destroyed. 02083_ Aluminum Leg destroyed. 02085_ Critical hit (Burn: +37). 02086_ Slug penetrates Wall. 02086_ System Shield destroyed. 02086_ Critical hit (Blast). 02086_ Acquired 5 matter. 02088_ Critical hit (Burn: +37). Map ----- +----------------------------------------------------+ | ??????????????????????????????# "########### | | ??????????????????????????????# # | | ?????????????????????#######??# # """ """ # | | ????????????########## ###" # """ """ # | | ???????????? " """ """ # | | ??????????? / # "" | | ???????????? # # "" | | ???????????????????### #### % # # "" | | ??????????????######### ##??# # # | | ????????????? # #???# ########### | | ????????????? """ # #???# #?????????##?? | | ??????????????""" "R" + t#???# ?????????? ?? | | ??????????????""" " " # H#???# ???????????? | | ??????????????""" # g #???# ?????????? | | ????????????# #Y #???##/#####?????????? | | ????????????# # #???? ?????????????? | | ????????????# #gg #???? ""?????????????? | | ????????????########### #???? ""?????????????? | | ???????????######?????#ggg#???? ""?????????????? | | ???????????? ????# #???? ???????????????? | | ??????????? """ ????# #????????????????????? | | ???????????= """ ???# #????????????????????? | | ??????????# """ #### #????????????????????? | | ??????????# + #????????????????????? | | ?????????# #### #????????????????????? | | ?????????## "" ???#@ #????????????????????? | | ??????????# S"" ????# #????????????????????? | | ??????????? "" ????# #????????????????????? | | ????????????###+#?????# #????????????????????? | | ?????????????????????? #????????????????????? | | ?????????????????????? #????????????????????? | | ?????????????????????? #????????????????????? | | ??????????????????????#####????????????????????? | | ???????????????????????????????????????????????? | | ???????????????????????????????????????????????? | | ???????????????????????????????????????????????? | | ???????????????????????????????????????????????? | | ???????????????????????????????????????????????? | | ???????????????????????????????????????????????? | | ???????????????????????????????????????????????? | | ???????????????????????????????????????????????? | | ???????????????????????????????????????????????? | | ???????????????????????????????????????????????? | | ???????????????????????????????????????????????? | | ???????????????????????????????????????????????? | | ???????????????????????????????????????????????? | | ???????????????????????????????????????????????? | | ???????????????????????????????????????????????? | | ???????????????????????????????????????????????? | | ???????????????????????????????????????????????? | +----------------------------------------------------+ Best States ------------- Heat Dissipation 31 Energy Generation 14 Energy Capacity 275 Matter Stores 300 Matter Capacity 300 Sight Range 16 Terrain Scan Range 16 Terrain Scan Density 85 ECM Strength 2 Evasion (%) 55 Defensive Hacking 20 Item Schematics ----------------- Rocket Launcher | -9/Materials | Scanalyzed Robot Schematics ------------------ None Fabricated ------------ Nothing Alien Tech Used ----------------- None Achievements -------------- True Hacker Challenges ------------ None Game ------ Seed HeavyDeuteriumBiocell Manual? 0 Play Time 00:32:52 Cumulative 8.9 hours Start 2024.04.10 @ 10:57:28 End 2024.04.10 @ 20:09:10 Sessions 3 Manual Loads 0 Difficulty Rogue Special Mode None Game No. 7 Rogue 7 Adventurer 0 Explorer 0 Win Type - Total 0 Types 0/0/0/0/0/0/0/0/0 Lore% 7 Gallery% 18 Achievement% 18 Wizard Run 0 Options --------- Layout 0 ASCII 0 Keyboard 0 Movement Numpad Keybinds 0 Fullscreen 1 Font 18/SmallcapsGlow Map View 38x25 Zoom Use 89% Tactical HUD 1 Map Filters NONE Filters NONE Steam 1 RUN: 7aeba184-b683-4676-9cf5-ad1dd1aad337